[Event "ESP-ch Rapid 2018"]
[Site "Linares"]
[Date "2018.08.19"]
[Round "6"]
[White "Espinosa Aranda, Angel"]
[Black "Santos Ruiz, Miguel"]
[Result "0-1"]
[ECO "B50"]
[WhiteElo "2451"]
[BlackElo "2517"]
[Annotator "ChessBase"]
[PlyCount "66"]
[EventDate "2018.08.19"]
[EventType "team-tourn"]
[EventCountry "ESP"]
[SourceTitle "playchess.com"]
[Source "ChessBase"]
[SourceQuality "1"]
[TimeControl "900+5"]

1. e4 {[%emt 0:00:00]} c5 {[%emt 0:00:00]} 2. Nf3 {[%emt 0:00:00]} d6 {[%emt 0:00:00]} 3. Nc3 {[%emt 0:00:00]} Nf6 {[%emt 0:00:08]} 4. e5 {[%emt 0:00:00]} dxe5 {[%emt 0:00:01]} 5. Nxe5 {[%emt 0:00:00]} a6 {[%emt 0:00:02]} 6. g3 {[%emt 0:00:10]} Qd6 {[%emt 0:00:03]} 7. Qe2 {[%emt 0:00:24]} Nc6 {[%emt 0:00:01]} 8. Nc4 {[%emt 0:00:24]} Qc7 {[%emt 0:00:13]} 9. Bg2 {[%emt 0:00:25]} Nd4 {[%emt 0:01:41]} 10. Qd1 {[%emt 0:00:01]} Bg4 {[%emt 0:00:04]} 11. f3 {[%emt 0:00:03]} Be6 {[%emt 0:00:02]} 12. Ne3 {[%emt 0:00:07]} g6 {[%emt 0:00:19]} 13. O-O {[%emt 0:00:17]} Bg7 {[%emt 0:00:01]} 14. d3 {[%emt 0:00:04]} O-O {[%emt 0:00:05]} 15. Ne4 {[%emt 0:00:04]} Rfd8 {[%emt 0:00:27]} 16. c3 {[%emt 0:00:03]} Nb5 {[%emt 0:01:36]} 17. Qe2 {[%emt 0:00:08]} Rac8 {[%emt 0:00:18]} 18. Nc4 {[%emt 0:02:08]} Nxe4 {[%emt 0:03:08]} 19. dxe4 {[%emt 0:00:13]} Nd6 {[%emt 0:00:11]} 20. Ne3 {[%emt 0:00:44]} b5 {[%emt 0:00:04]} 21. f4 {[%emt 0:00:10]} Nc4 {[%emt 0:00:10]} 22. Nd5 {[%emt 0:01:05]} Bxd5 {[%emt 0:00:07]} 23. exd5 {[%emt 0:00:02]} Qd7 {[%emt 0:01:57]} 24. a4 {[%emt 0:02:53]} Nb6 {[%emt 0:00:21]} 25. axb5 {[%emt 0:00:12]} axb5 {[%emt 0:00:02]} 26. Ra5 {[%emt 0:01:56]} c4 {[%emt 0:00:51]} 27. Rd1 {[%emt 0:00:02]} Na4 {[%emt 0:00:52]} 28. Be3 {[%emt 0:00:27]} b4 {[%emt 0:00:15]} 29. Ra7 {[%emt 0:02:02]} Qb5 {[%emt 0:01:01]} 30. Bd4 {[%emt 0:00:22]} Bxd4+ {[%emt 0:00:46]} 31. Rxd4 {[%emt 0:00:09]} bxc3 {[%emt 0:00:03]} 32. Qxe7 {[%emt 0:00:16]} Rf8 {[%emt 0:00:01]} 33. Rb7 {[%emt 0:01:14]} Qxb7 {[%emt 0:00:05]} 0-1

[Event "ESP-ch Rapid 2018"]
[Site "Linares"]
[Date "2018.08.19"]
[Round "6"]
[White "Cruz Lledo, Pablo"]
[Black "Ljubojevic, Ljubomir"]
[Result "1-0"]
[ECO "E48"]
[WhiteElo "2432"]
[BlackElo "2571"]
[Annotator "ChessBase"]
[PlyCount "95"]
[EventDate "2018.08.19"]
[EventType "team-tourn"]
[EventCountry "ESP"]
[SourceTitle "playchess.com"]
[Source "ChessBase"]
[SourceQuality "1"]
[TimeControl "900+5"]

1. d4 {[%emt 0:00:00]} Nf6 {[%emt 0:00:00]} 2. c4 {[%emt 0:00:00]} e6 {[%emt 0:00:00]} 3. Nc3 {[%emt 0:00:01]} Bb4 {[%emt 0:00:04]} 4. e3 {[%emt 0:00:02]} O-O {[%emt 0:00:08]} 5. Bd3 {[%emt 0:00:02]} d5 {[%emt 0:00:02]} 6. cxd5 {[%emt 0:00:02]} exd5 {[%emt 0:00:04]} 7. Nge2 {[%emt 0:00:07]} Re8 {[%emt 0:00:08]} 8. O-O {[%emt 0:00:06]} Bd6 {[%emt 0:00:15]} 9. Ng3 {[%emt 0:00:10]} c5 {[%emt 0:00:14]} 10. Nb5 {[%emt 0:00:20]} Bf8 {[%emt 0:00:04]} 11. dxc5 {[%emt 0:00:19]} Nc6 {[%emt 0:00:09]} 12. Nd6 {[%emt 0:00:46]} Bxd6 {[%emt 0:00:02]} 13. cxd6 {[%emt 0:00:01]} Qxd6 {[%emt 0:00:01]} 14. b3 {[%emt 0:00:18]} Bg4 {[%emt 0:00:22]} 15. Qd2 {[%emt 0:00:28]} Rad8 {[%emt 0:00:42]} 16. f3 {[%emt 0:00:37]} Bc8 {[%emt 0:00:06]} 17. Bb2 {[%emt 0:00:05]} Qb4 {[%emt 0:01:00]} 18. Qf2 {[%emt 0:00:10]} Ne5 {[%emt 0:00:12]} 19. Rad1 {[%emt 0:00:19]} Qa5 {[%emt 0:00:16]} 20. a3 {[%emt 0:00:31]} Qb6 {[%emt 0:00:07]} 21. b4 {[%emt 0:00:03]} Bd7 {[%emt 0:01:26]} 22. Bd4 {[%emt 0:00:02]} Qc7 {[%emt 0:00:02]} 23. Rfe1 {[%emt 0:01:21]} Qd6 {[%emt 0:00:42]} 24. Bb1 {[%emt 0:00:55]} Qa6 {[%emt 0:00:18]} 25. Bb2 {[%emt 0:00:47]} Ba4 {[%emt 0:00:45]} 26. Rc1 {[%emt 0:00:06]} Bb5 {[%emt 0:00:22]} 27. Nf5 {[%emt 0:00:15]} Bd3 {[%emt 0:00:02]} 28. Nxg7 {[%emt 0:00:55]} Nfg4 {[%emt 0:03:02]} 29. Qg3 {[%emt 0:00:40]} Kxg7 {[%emt 0:01:58]} 30. Qxg4+ {[%emt 0:00:19]} Kf8 {[%emt 0:01:04]} 31. Bxe5 {[%emt 0:00:03]} Rxe5 {[%emt 0:00:01]} 32. Qd4 {[%emt 0:00:06]} Bxb1 {[%emt 0:00:06]} 33. Qxe5 {[%emt 0:00:02]} Bg6 {[%emt 0:00:05]} 34. Qh8+ {[%emt 0:01:01]} Ke7 {[%emt 0:00:01]} 35. Rc7+ {[%emt 0:00:03]} Rd7 {[%emt 0:00:01]} 36. Qe5+ {[%emt 0:00:11]} Qe6 {[%emt 0:00:26]} 37. Rxd7+ {[%emt 0:00:11]} Kxd7 {[%emt 0:00:01]} 38. Qxe6+ {[%emt 0:00:16]} fxe6 {[%emt 0:00:01]} 39. Rc1 {[%emt 0:00:08]} Bd3 {[%emt 0:00:10]} 40. Kf2 {[%emt 0:00:07]} Bc4 {[%emt 0:00:03]} 41. e4 {[%emt 0:00:11]} Kc6 {[%emt 0:00:00]} 42. Ke3 Kb5 43. Kd4 {[%emt 0:00:22]} Ka4 {[%emt 0:00:01]} 44. Rxc4 {[%emt 0:00:22]} dxc4 {[%emt 0:00:01]} 45. Kxc4 {[%emt 0:00:02]} Kxa3 {[%emt 0:00:02]} 46. f4 {[%emt 0:00:02]} Ka4 {[%emt 0:00:10]} 47. f5 {[%emt 0:00:02]} b5+ {[%emt 0:00:03]} 48. Kc3 {[%emt 0:00:01]} 1-0

[Event "ESP-ch Rapid 2018"]
[Site "Linares"]
[Date "2018.08.19"]
[Round "6"]
[White "Llobell Cortell, Enrique"]
[Black "Jimenez Martinez, Jose Vicente"]
[Result "0-1"]
[ECO "B09"]
[WhiteElo "2411"]
[BlackElo "2243"]
[Annotator "NA"]
[PlyCount "112"]
[EventDate "2018.08.19"]
[EventType "team-tourn"]
[EventCountry "ESP"]
[SourceTitle "playchess.com"]
[Source "ChessBase"]
[SourceQuality "1"]
[TimeControl "900+5"]

1. e4 {[%emt 0:00:00]} d6 {[%emt 0:00:00]} 2. d4 {[%emt 0:00:05]} g6 {[%emt 0:00:00]} 3. Nc3 {[%emt 0:00:04]} Bg7 {[%emt 0:00:00]} 4. f4 {[%emt 0:00:06]} Nf6 {[%emt 0:00:02]} 5. Nf3 {[%emt 0:00:09]} c5 {[%emt 0:00:01]} 6. Bb5+ {[%emt 0:00:25]} Bd7 {[%emt 0:00:02]} 7. e5 {[%emt 0:00:19]} Ng4 {[%emt 0:00:04]} 8. Bxd7+ {[%emt 0:00:04]} Qxd7 {[%emt 0:00:18]} 9. h3 {[%emt 0:00:01]} cxd4 {[%emt 0:00:23]} 10. Qxd4 {[%emt 0:00:02]} Nc6 {[%emt 0:00:38]} 11. Qe4 {[%emt 0:00:03]} f5 {[%emt 0:02:18]} 12. Qc4 {[%emt 0:01:33]} Nh6 {[%emt 0:00:46]} 13. e6 {[%emt 0:05:38]} Qd8 {[%emt 0:00:15]} 14. Be3 {[%emt 0:00:34]} O-O {[%emt 0:00:52]} 15. O-O {[%emt 0:01:08]} Rc8 {[%emt 0:00:24]} 16. Nd5 {[%emt 0:00:09]} Kh8 {[%emt 0:00:26]} 17. Qd3 {[%emt 0:00:53]} Qa5 {[%emt 0:00:11]} 18. c3 {[%emt 0:00:09]} Ng8 {[%emt 0:01:18]} 19. b4 {[%emt 0:00:46]} Qa3 {[%emt 0:01:16]} 20. Rfb1 {[%emt 0:03:50]} Nf6 {[%emt 0:00:18]} 21. Rb3 {[%emt 0:00:01]} Qa4 {[%emt 0:00:00]} 22. Nxf6 {[%emt 0:00:37]} Bxf6 {[%emt 0:00:02]} 23. Nd4 {[%emt 0:00:09]} Nxd4 {[%emt 0:00:17]} 24. Bxd4 {[%emt 0:00:00]} Qc6 {[%emt 0:00:41]} 25. Re1 {[%emt 0:00:05]} Qc4 {[%emt 0:00:14]} 26. Qxc4 {[%emt 0:00:11]} Rxc4 {[%emt 0:00:01]} 27. Bxa7 {[%emt 0:00:04]} Ra8 {[%emt 0:00:06]} 28. Bd4 {[%emt 0:00:06]} Bxd4+ {[%emt 0:00:08]} 29. cxd4 {[%emt 0:00:01]} Rxd4 30. Re2 {[%emt 0:00:02]} Rxf4 {[%emt 0:00:11]} 31. a3 {[%emt 0:00:01]} Rc4 {[%emt 0:00:03]} 32. Kh2 {[%emt 0:00:04]} Kg7 {[%emt 0:00:02]} 33. Rf3 {[%emt 0:00:04]} Rac8 {[%emt 0:00:03]} 34. Rb2 {[%emt 0:00:06]} Re4 {[%emt 0:00:15]} 35. a4 {[%emt 0:00:12]} Rxe6 {[%emt 0:00:03]} 36. a5 {[%emt 0:00:03]} Re4 {[%emt 0:00:05]} 37. Ra3 {[%emt 0:00:03]} Rcc4 {[%emt 0:02:00]} 38. b5 {[%emt 0:00:03]} Ra4 {[%emt 0:00:01]} 39. Rxa4 {[%emt 0:00:02]} Rxa4 {[%emt 0:00:00]} 40. a6 {[%emt 0:00:01]} b6 {[%emt 0:00:01]} 41. Rc2 {[%emt 0:00:07]} Ra5 {[%emt 0:00:04]} 42. Rc7 {[%emt 0:00:09]} Kf6 {[%emt 0:00:13]} 43. a7 {[%emt 0:00:05]} h6 {[%emt 0:00:23]} 44. h4 {[%emt 0:00:01]} e5 {[%emt 0:00:17]} 45. Rc6 {[%emt 0:00:05]} Ke6 {[%emt 0:00:04]} 46. Rc7 {[%emt 0:00:05]} f4 {[%emt 0:00:15]} 47. Kg1 {[%emt 0:00:22]} e4 {[%emt 0:00:04]} 48. Kf2 {[%emt 0:00:00]} Ra2+ {[%emt 0:00:01]} 49. Ke1 {[%emt 0:00:01]} Kd5 {[%emt 0:00:05]} 50. Rc6 {[%emt 0:00:01]} Rxa7 {[%emt 0:00:03]} 51. Rxb6 {[%emt 0:00:01]} Ra2 {[%emt 0:00:06]} 52. Kf1 {[%emt 0:00:01]} Rb2 {[%emt 0:00:06]} 53. Rb8 {[%emt 0:00:01]} Kd4 {[%emt 0:00:03]} 54. b6 d5 {[%emt 0:00:03]} 55. b7 {[%emt 0:00:12]} Ke3 {[%emt 0:00:03]} 56. Kg1 {[%emt 0:00:01]} d4 {[%emt 0:00:03]} 0-1

[Event "ESP-ch Rapid 2018"]
[Site "Linares"]
[Date "2018.08.19"]
[Round "6"]
[White "Tejedor Fuente, Enrique"]
[Black "Galvez Extremera, Francisco"]
[Result "1-0"]
[ECO "B10"]
[WhiteElo "2408"]
[BlackElo "2142"]
[Annotator "NA"]
[PlyCount "68"]
[EventDate "2018.08.19"]
[EventType "team-tourn"]
[EventCountry "ESP"]
[SourceTitle "playchess.com"]
[Source "ChessBase"]
[SourceQuality "1"]
[TimeControl "900+5"]

1. e4 {[%emt 0:00:09]} c6 {[%emt 0:00:00]} 2. Nc3 {[%emt 0:00:03]} d5 {[%emt 0:00:00]} 3. Nf3 {[%emt 0:00:10]} dxe4 {[%emt 0:00:01]} 4. Nxe4 {[%emt 0:00:02]} Nf6 {[%emt 0:00:02]} 5. Qe2 {[%emt 0:00:01]} Bf5 {[%emt 0:00:15]} 6. d3 {[%emt 0:00:06]} e6 {[%emt 0:00:11]} 7. Nxf6+ {[%emt 0:00:22]} Qxf6 {[%emt 0:01:02]} 8. g3 {[%emt 0:00:14]} Bg4 {[%emt 0:00:47]} 9. Bg2 {[%emt 0:00:02]} Bb4+ {[%emt 0:00:06]} 10. Kf1 {[%emt 0:00:12]} Na6 {[%emt 0:00:46]} 11. h3 {[%emt 0:00:06]} Bh5 {[%emt 0:00:07]} 12. g4 {[%emt 0:00:29]} Bg6 {[%emt 0:00:07]} 13. c3 {[%emt 0:00:03]} Qd8 {[%emt 0:01:04]} 14. d4 {[%emt 0:00:23]} Be7 {[%emt 0:00:11]} 15. h4 {[%emt 0:00:13]} h5 {[%emt 0:00:14]} 16. Ne5 {[%emt 0:00:04]} Bh7 {[%emt 0:02:20]} 17. Qf3 {[%emt 0:01:40]} O-O {[%emt 0:02:15]} 18. gxh5 {[%emt 0:00:03]} Bxh4 {[%emt 0:01:00]} 19. Qg4 {[%emt 0:01:37]} Bf6 {[%emt 0:00:16]} 20. Bf4 {[%emt 0:01:47]} Nc7 {[%emt 0:00:17]} 21. Rg1 {[%emt 0:00:27]} Qe7 {[%emt 0:02:13]} 22. Re1 {[%emt 0:01:43]} Rad8 {[%emt 0:00:05]} 23. Be4 {[%emt 0:00:46]} Bxe4 {[%emt 0:00:11]} 24. Rxe4 {[%emt 0:00:03]} Nd5 {[%emt 0:00:09]} 25. Bh6 {[%emt 0:00:16]} Kh7 {[%emt 0:00:52]} 26. Bxg7 {[%emt 0:02:16]} Rg8 {[%emt 0:00:22]} 27. h6 {[%emt 0:00:25]} Bg5 {[%emt 0:01:58]} 28. Qxg5 {[%emt 0:01:16]} Qxg5 {[%emt 0:00:03]} 29. Rxg5 {[%emt 0:00:02]} f6 {[%emt 0:00:07]} 30. Nf7 {[%emt 0:00:17]} Rd7 {[%emt 0:00:15]} 31. Ne5 {[%emt 0:01:05]} fxe5 {[%emt 0:00:05]} 32. Rgxe5 {[%emt 0:00:16]} Rf7 {[%emt 0:00:03]} 33. Rxe6 {[%emt 0:00:03]} Rd8 {[%emt 0:00:14]} 34. Re8 {[%emt 0:00:08]} Rxe8 {[%emt 0:00:00]} 1-0

[Event "ESP-ch Rapid 2018"]
[Site "Linares"]
[Date "2018.08.19"]
[Round "6"]
[White "Fernandez Garcia, Jose Miguel"]
[Black "Arizmendi Martinez, Julen Luis"]
[Result "0-1"]
[ECO "C16"]
[WhiteElo "2404"]
[BlackElo "2507"]
[Annotator "ChessBase"]
[PlyCount "72"]
[EventDate "2018.08.19"]
[EventType "team-tourn"]
[EventCountry "ESP"]
[SourceTitle "playchess.com"]
[Source "ChessBase"]
[SourceQuality "1"]
[TimeControl "900+5"]

1. e4 {[%emt 0:00:00]} e6 {[%emt 0:00:53]} 2. d4 {[%emt 0:00:00]} d5 {[%emt 0:00:01]} 3. Nc3 {[%emt 0:00:49]} Bb4 {[%emt 0:00:08]} 4. e5 {[%emt 0:00:07]} Ne7 {[%emt 0:00:39]} 5. Qg4 {[%emt 0:00:02]} c5 {[%emt 0:00:54]} 6. dxc5 {[%emt 0:00:28]} Nbc6 {[%emt 0:00:03]} 7. Bd2 {[%emt 0:00:02]} O-O {[%emt 0:01:41]} 8. Nf3 {[%emt 0:00:54]} Bxc5 {[%emt 0:01:36]} 9. Bd3 {[%emt 0:00:20]} Ng6 {[%emt 0:01:30]} 10. Qh5 {[%emt 0:00:18]} f6 {[%emt 0:02:57]} 11. exf6 {[%emt 0:01:25]} Qxf6 {[%emt 0:00:02]} 12. Ng5 {[%emt 0:02:42]} h6 {[%emt 0:00:33]} 13. Bxg6 {[%emt 0:01:05]} Qxf2+ {[%emt 0:01:41]} 14. Kd1 {[%emt 0:00:01]} e5 {[%emt 0:00:03]} 15. Re1 {[%emt 0:03:26]} Qxg2 {[%emt 0:00:50]} 16. Kc1 {[%emt 0:00:01]} Ne7 {[%emt 0:01:08]} 17. Bh7+ {[%emt 0:03:34]} Kh8 {[%emt 0:00:01]} 18. Bd3 {[%emt 0:00:01]} e4 {[%emt 0:01:17]} 19. Ngxe4 {[%emt 0:00:03]} dxe4 {[%emt 0:00:24]} 20. Qxc5 {[%emt 0:00:01]} exd3 {[%emt 0:00:04]} 21. Qxe7 {[%emt 0:00:13]} Bf5 {[%emt 0:00:03]} 22. cxd3 {[%emt 0:01:09]} Bxd3 {[%emt 0:00:01]} 23. Qe3 {[%emt 0:00:07]} Bh7 {[%emt 0:00:03]} 24. Qg3 {[%emt 0:00:02]} Qc6 {[%emt 0:00:11]} 25. Rg1 {[%emt 0:00:08]} Rf7 {[%emt 0:00:04]} 26. Qg2 {[%emt 0:00:05]} Qf6 {[%emt 0:00:14]} 27. b3 {[%emt 0:00:06]} Qf5 {[%emt 0:00:03]} 28. Kb2 {[%emt 0:00:04]} Qc2+ 29. Ka3 Rd8 {[%emt 0:00:12]} 30. Rad1 {[%emt 0:00:06]} Rd6 {[%emt 0:00:05]} 31. Na4 {[%emt 0:00:09]} b5 {[%emt 0:00:07]} 32. Rc1 {[%emt 0:00:04]} Qxd2 {[%emt 0:00:04]} 33. Rc8+ {[%emt 0:00:05]} Bg8 {[%emt 0:00:01]} 34. Nc5 {[%emt 0:00:07]} Qa5+ {[%emt 0:00:05]} 35. Na4 {[%emt 0:00:04]} bxa4 {[%emt 0:00:05]} 36. Qa8 {[%emt 0:00:06]} axb3+ {[%emt 0:00:03]} 0-1

[Event "ESP-ch Rapid 2018"]
[Site "Linares"]
[Date "2018.08.19"]
[Round "6"]
[White "Pallardo Lozoya, Jose Vicente"]
[Black "Garcia Garcia, Adrian Antonio"]
[Result "1/2-1/2"]
[ECO "C41"]
[WhiteElo "2382"]
[BlackElo "2179"]
[Annotator "NA"]
[PlyCount "106"]
[EventDate "2018.08.19"]
[EventType "team-tourn"]
[EventCountry "ESP"]
[SourceTitle "playchess.com"]
[Source "ChessBase"]
[SourceQuality "1"]
[TimeControl "900+5"]

1. e4 {[%emt 0:00:00]} e5 {[%emt 0:00:00]} 2. Nf3 {[%emt 0:00:00]} d6 {[%emt 0:00:00]} 3. d4 {[%emt 0:00:06]} exd4 {[%emt 0:00:00]} 4. Qxd4 {[%emt 0:00:20]} a6 {[%emt 0:00:01]} 5. Bc4 {[%emt 0:00:25]} Nc6 {[%emt 0:00:03]} 6. Qe3 {[%emt 0:00:19]} Be7 {[%emt 0:00:09]} 7. O-O {[%emt 0:00:09]} Nf6 {[%emt 0:00:21]} 8. h3 {[%emt 0:00:27]} O-O {[%emt 0:00:08]} 9. Nc3 {[%emt 0:00:48]} b5 {[%emt 0:00:42]} 10. Bd5 {[%emt 0:00:31]} Bb7 {[%emt 0:00:51]} 11. a3 {[%emt 0:01:06]} Nxd5 {[%emt 0:01:02]} 12. exd5 {[%emt 0:00:05]} Na5 {[%emt 0:00:07]} 13. Qd3 {[%emt 0:00:53]} Bf6 {[%emt 0:00:01]} 14. Ne4 {[%emt 0:00:19]} Nc4 {[%emt 0:00:17]} 15. Bg5 {[%emt 0:04:19]} Bxg5 {[%emt 0:02:12]} 16. Nexg5 {[%emt 0:00:16]} g6 {[%emt 0:00:01]} 17. Ne4 {[%emt 0:00:32]} Ne5 {[%emt 0:00:23]} 18. Nxe5 {[%emt 0:00:29]} dxe5 {[%emt 0:00:02]} 19. Rad1 {[%emt 0:01:29]} Bc8 {[%emt 0:01:31]} 20. f4 {[%emt 0:00:32]} f5 {[%emt 0:01:01]} 21. Nc5 {[%emt 0:00:05]} Qd6 {[%emt 0:00:07]} 22. Qe3 {[%emt 0:00:11]} e4 {[%emt 0:01:01]} 23. Rd2 {[%emt 0:00:40]} Bd7 {[%emt 0:01:19]} 24. Rfd1 {[%emt 0:00:11]} Rae8 {[%emt 0:00:01]} 25. b4 {[%emt 0:00:10]} Bc8 {[%emt 0:00:41]} 26. Ra1 {[%emt 0:00:16]} g5 {[%emt 0:00:22]} 27. Rf1 {[%emt 0:00:11]} h6 {[%emt 0:00:22]} 28. Rff2 {[%emt 0:00:32]} Kh7 {[%emt 0:00:07]} 29. Kf1 {[%emt 0:00:17]} Qf6 {[%emt 0:00:45]} 30. c3 {[%emt 0:00:11]} Qd6 {[%emt 0:00:37]} 31. Ke1 {[%emt 0:00:11]} Rg8 {[%emt 0:00:29]} 32. Kf1 {[%emt 0:01:18]} Rg6 {[%emt 0:00:44]} 33. Kg1 {[%emt 0:00:03]} Reg8 {[%emt 0:00:01]} 34. Kh1 {[%emt 0:00:01]} g4 {[%emt 0:00:24]} 35. Rf1 {[%emt 0:00:19]} gxh3 {[%emt 0:00:33]} 36. Qxh3 Qf6 37. Ne6 {[%emt 0:00:11]} Bxe6 {[%emt 0:00:19]} 38. dxe6 {[%emt 0:00:00]} Qxe6 {[%emt 0:00:02]} 39. Rfd1 {[%emt 0:00:01]} R8g7 {[%emt 0:00:08]} 40. Rd5 {[%emt 0:00:04]} e3 {[%emt 0:00:25]} 41. Re5 Qc6 42. Rg1 {[%emt 0:00:23]} Qxc3 {[%emt 0:00:22]} 43. Qxf5 {[%emt 0:00:02]} Qc6 {[%emt 0:00:10]} 44. Qe4 {[%emt 0:00:09]} Qf6 {[%emt 0:00:13]} 45. Rh5 {[%emt 0:00:07]} e2 {[%emt 0:00:09]} 46. f5 {[%emt 0:00:03]} Rg5 {[%emt 0:00:08]} 47. Qxe2 {[%emt 0:00:01]} Rxh5+ {[%emt 0:00:08]} 48. Qxh5 {[%emt 0:00:01]} Rg5 {[%emt 0:00:00]} 49. Qh3 {[%emt 0:00:04]} Rxf5 {[%emt 0:00:09]} 50. Rd1 {[%emt 0:00:01]} Rf1+ {[%emt 0:00:06]} 51. Rxf1 {[%emt 0:00:00]} Qxf1+ {[%emt 0:00:01]} 52. Kh2 {[%emt 0:00:02]} Qf4+ {[%emt 0:00:02]} 53. Kh1 {[%emt 0:00:07]} Qf1+ {[%emt 0:00:08]} 1/2-1/2

[Event "ESP-ch Rapid 2018"]
[Site "Linares"]
[Date "2018.08.19"]
[Round "6"]
[White "Matnadze, Ana"]
[Black "Silva Rodriguez, Fernando"]
[Result "0-1"]
[ECO "D02"]
[WhiteElo "2378"]
[BlackElo "2239"]
[Annotator "NA"]
[PlyCount "82"]
[EventDate "2018.08.19"]
[EventType "team-tourn"]
[EventCountry "ESP"]
[SourceTitle "playchess.com"]
[Source "ChessBase"]
[SourceQuality "1"]
[TimeControl "900+5"]

1. d4 {[%emt 0:00:00]} d5 {[%emt 0:00:00]} 2. Nf3 {[%emt 0:00:00]} Nf6 {[%emt 0:00:00]} 3. g3 {[%emt 0:00:02]} e6 {[%emt 0:00:05]} 4. Bg2 {[%emt 0:00:01]} b5 {[%emt 0:00:14]} 5. O-O {[%emt 0:00:06]} Bb7 {[%emt 0:00:11]} 6. a4 {[%emt 0:00:02]} b4 {[%emt 0:00:02]} 7. Ne5 {[%emt 0:00:01]} Nbd7 {[%emt 0:00:09]} 8. a5 {[%emt 0:00:06]} Rc8 {[%emt 0:00:42]} 9. a6 {[%emt 0:00:11]} Ba8 {[%emt 0:00:01]} 10. c4 {[%emt 0:00:05]} c5 {[%emt 0:00:43]} 11. cxd5 {[%emt 0:00:23]} Bxd5 {[%emt 0:00:09]} 12. Bxd5 {[%emt 0:02:10]} Nxd5 {[%emt 0:00:05]} 13. e4 {[%emt 0:00:08]} N5f6 {[%emt 0:01:33]} 14. Qa4 {[%emt 0:02:01]} Be7 {[%emt 0:05:11]} 15. Bg5 {[%emt 0:04:53]} h6 {[%emt 0:03:09]} 16. Nc6 {[%emt 0:00:29]} Qb6 {[%emt 0:00:56]} 17. Nxe7 {[%emt 0:02:13]} Kxe7 {[%emt 0:00:02]} 18. Bxf6+ {[%emt 0:00:18]} Nxf6 {[%emt 0:00:12]} 19. e5 {[%emt 0:00:08]} Nd7 {[%emt 0:00:50]} 20. dxc5 {[%emt 0:00:46]} Nxc5 {[%emt 0:00:11]} 21. Qc2 {[%emt 0:00:12]} Rhd8 {[%emt 0:00:24]} 22. Nd2 {[%emt 0:00:17]} Nd3 {[%emt 0:00:13]} 23. Nc4 {[%emt 0:01:12]} Nxe5 24. b3 Qc6 {[%emt 0:00:38]} 25. f4 {[%emt 0:00:31]} Nxc4 {[%emt 0:00:02]} 26. bxc4 {[%emt 0:00:02]} Qxc4 {[%emt 0:00:02]} 27. Qg2 {[%emt 0:00:15]} Qd4+ {[%emt 0:00:10]} 28. Kh1 {[%emt 0:00:01]} Qd5 {[%emt 0:00:01]} 29. Rf3 {[%emt 0:00:14]} Rc2 {[%emt 0:00:30]} 30. Qxc2 {[%emt 0:00:10]} Qxf3+ {[%emt 0:00:02]} 31. Kg1 {[%emt 0:00:02]} Qe3+ {[%emt 0:00:01]} 32. Kh1 {[%emt 0:00:03]} Rd2 {[%emt 0:00:08]} 33. Qc7+ {[%emt 0:00:08]} Kf6 {[%emt 0:00:01]} 34. Qe5+ {[%emt 0:00:15]} Qxe5 {[%emt 0:00:02]} 35. fxe5+ {[%emt 0:00:02]} Kxe5 {[%emt 0:00:01]} 36. Ra5+ {[%emt 0:00:04]} Rd5 {[%emt 0:00:04]} 37. Ra2 {[%emt 0:00:02]} b3 {[%emt 0:00:05]} 38. Rb2 {[%emt 0:00:03]} Rb5 {[%emt 0:00:01]} 39. Kg2 {[%emt 0:00:01]} Kd4 {[%emt 0:00:01]} 40. Kf2 {[%emt 0:00:01]} Kc3 {[%emt 0:00:01]} 41. Rb1 {[%emt 0:00:01]} b2 {[%emt 0:00:01]} 0-1

[Event "ESP-ch Rapid 2018"]
[Site "Linares"]
[Date "2018.08.19"]
[Round "6"]
[White "Estremera Panos, Sergio"]
[Black "Riquelme Valero, Manuel Damian"]
[Result "1-0"]
[ECO "D20"]
[WhiteElo "2337"]
[BlackElo "2150"]
[Annotator "NA"]
[PlyCount "53"]
[EventDate "2018.08.19"]
[EventType "team-tourn"]
[EventCountry "ESP"]
[SourceTitle "playchess.com"]
[Source "ChessBase"]
[SourceQuality "1"]
[TimeControl "900+5"]

1. d4 {[%emt 0:00:00]} d5 {[%emt 0:00:00]} 2. c4 {[%emt 0:00:00]} dxc4 {[%emt 0:00:02]} 3. e3 {[%emt 0:00:03]} Nf6 {[%emt 0:00:05]} 4. Bxc4 {[%emt 0:00:02]} a6 {[%emt 0:00:04]} 5. Nf3 {[%emt 0:00:09]} e6 {[%emt 0:00:02]} 6. Qe2 {[%emt 0:00:07]} b5 {[%emt 0:00:08]} 7. Bd3 {[%emt 0:00:31]} Bb7 {[%emt 0:00:12]} 8. O-O {[%emt 0:00:10]} Nbd7 {[%emt 0:00:41]} 9. e4 {[%emt 0:00:53]} Be7 {[%emt 0:00:20]} 10. a4 {[%emt 0:00:44]} b4 {[%emt 0:00:10]} 11. Nbd2 {[%emt 0:00:10]} O-O {[%emt 0:00:14]} 12. e5 {[%emt 0:00:09]} Nd5 {[%emt 0:00:18]} 13. Ne4 {[%emt 0:00:02]} c5 {[%emt 0:01:32]} 14. dxc5 {[%emt 0:00:34]} Nxc5 {[%emt 0:00:10]} 15. Nxc5 {[%emt 0:00:13]} Bxc5 {[%emt 0:00:02]} 16. Ng5 {[%emt 0:02:06]} g6 {[%emt 0:00:56]} 17. Ne4 {[%emt 0:01:41]} Be7 {[%emt 0:00:02]} 18. Bh6 {[%emt 0:00:03]} Re8 {[%emt 0:00:02]} 19. Rac1 {[%emt 0:00:25]} Qa5 {[%emt 0:02:15]} 20. Qf3 {[%emt 0:01:08]} Rec8 {[%emt 0:00:25]} 21. Bc4 {[%emt 0:00:38]} Qd8 {[%emt 0:00:43]} 22. Bd3 {[%emt 0:00:39]} Rxc1 {[%emt 0:00:06]} 23. Rxc1 {[%emt 0:00:02]} Rc8 {[%emt 0:00:07]} 24. Re1 {[%emt 0:00:52]} Qd7 {[%emt 0:00:18]} 25. b3 {[%emt 0:00:25]} Nc3 {[%emt 0:00:07]} 26. Nf6+ {[%emt 0:00:07]} Bxf6 {[%emt 0:00:06]} 27. Qxf6 1-0